[Event "34th Pula Open 2022"]
[Site "Pula"]
[Date "2022.06.19"]
[Round "2.4"]
[White "Medancic, Rikard"]
[Black "Lindgren, Philip"]
[Result "0-1"]
[ECO "A07"]
[WhiteElo "2145"]
[BlackElo "2369"]
[Annotator "TA"]
[PlyCount "90"]
[EventDate "2022.06.18"]
[EventType "swiss"]
[EventCountry "CRO"]
[SourceTitle "playchess.com"]
[Source "ChessBase"]
[SourceQuality "1"]
[TimeControl "5400+30"]

{[%evp 9,89,0,7,2,18,-37,-3,-1,0,0,0,-20,-4,-11,15,14,93,93,100,81,100,114,98,106,115,93,146,113,122,103,99,95,75,21,43,26,29,45,72,0,36,0,22,0,0,0,0,-114,-95,-152,-128,-145,-93,-231,-242,-240,-273,-248,-266,-257,-242,-906,-891,-845,-429,-287,0,-805,-405,-29971,-29971,-29971,-29972,-29976,-29977,-29976,-29977,-29977,-29978,-29997,-29994,-29999]} 1. Nf3 {[%emt 0:00:27]} d5 {[%emt 0:01:06]} 2. g3 {[%emt 0:00:28]} c6 {[%emt 0:01:27]} 3. Bg2 {[%emt 0:00:20]} Bg4 {[%emt 0:00:35]} 4. Ne5 {[%emt 0:03:49]} Bf5 {[%emt 0:01:11]} 5. c4 {[%emt 0:05:18]} Nd7 {[%emt 0:09:29]} 6. Nxd7 {[%emt 0:05:10] A07: Réti Opening: New York and Capablanca Systems.} (6. d4 {keeps more tension.} e6 7. O-O Ngf6 8. Qb3) 6... Qxd7 {[%emt 0:00:17]} 7. Qb3 {[%emt 0:02:59]} (7. cxd5 $11 cxd5 8. d3) 7... e6 {[%emt 0:03:09]} 8. d3 {[%emt 0:02:33] The position is equal.} Nf6 {[%emt 0:04:27]} 9. O-O {[%emt 0:00:35]} Be7 {[%emt 0:09:10] [#]} 10. Re1 $146 {[%emt 0:02:04]} ({Predecessor:} 10. Nd2 O-O 11. Nf3 a5 12. Bf4 Bd6 13. Bxd6 Qxd6 14. Qc3 Rfe8 15. c5 Qc7 16. Ne5 {½-½ (39) De Oliveira,M (2543)-Pappier,C (2442) ICCF email 2008}) 10... d4 {[%emt 0:12:01]} 11. Nd2 {[%emt 0:00:35]} h5 {[%emt 0:12:56]} 12. Nf3 {[%emt 0:04:45]} h4 {[%emt 0:02:25]} (12... Bc5 $11 {remains equal.}) 13. Nxh4 $16 {[%emt 0:05:11]} Rxh4 {[%emt 0:01:22]} 14. gxh4 {[%emt 0:00:05]} e5 {[%emt 0:00:06] Prevents Bf4.} 15. Bg5 {[%emt 0:12:42]} O-O-O {[%emt 0:02:00]} 16. e3 {[%emt 0:08:42][%cal Be2e3,Be3e4][%mdl 32]} Bh3 {[%emt 0:09:20]} 17. Qd1 {[%emt 0:05:24] exd4 is the strong threat.} Bg4 {[%emt 0:07:06]} (17... Bb4 $142) 18. f3 {[%emt 0:08:27]} Bf5 {[%emt 0:06:37]} 19. e4 {[%emt 0:04:28]} Be6 {[%emt 0:00:40]} 20. f4 {[%emt 0:01:20]} exf4 {[%emt 0:00:30]} 21. Qf3 {[%emt 0:00:30]} (21. Bxf4 $16 {Black must now prevent Bg3.} Ng4 22. Qa4) 21... Ng4 $1 $11 {[%emt 0:00:30] [#] Strongly threatening ...Ne5.} 22. Bxf4 {[%emt 0:00:30]} ({Avoid the trap} 22. Qxf4 $2 f6 23. Re2 fxg5 24. hxg5 Rf8 $19) 22... Bxh4 {[%emt 0:00:30]} 23. Bg3 {[%emt 0:00:30]} Bg5 {[%emt 0:00:30]} 24. Bf4 {[%emt 0:00:30]} (24. h3 $16 Ne3 25. Bh2) 24... Bh4 {[%emt 0:00:30]} 25. Bg3 {[%emt 0:00:30]} Rh8 {[%emt 0:00:30]} 26. h3 {[%emt 0:00:30]} Bxg3 {[%emt 0:00:30]} 27. Qxg3 {[%emt 0:00:30]} Ne3 {[%emt 0:10:10]} 28. Rxe3 {[%emt 0:23:44]} ({Of course not} 28. Qxg7 Qd8 29. Rxe3 dxe3 $17) (28. Re2 $1 $11) 28... dxe3 $17 {[%emt 0:00:30]} 29. Qxe3 {[%emt 0:00:04]} (29. Qxg7 $142 Qd8 30. Re1) 29... Bxh3 {[%emt 0:00:47]} 30. Rf1 {[%emt 0:00:24]} Rh6 {[%emt 0:03:24]} ({Better is} 30... Bxg2 31. Kxg2 Qg4+ 32. Qg3 Qe2+ 33. Kg1 f6) 31. Rf3 {[%emt 0:00:31]} (31. Rf4 $17) 31... Bxg2 $19 {[%emt 0:00:40]} 32. Kxg2 {[%emt 0:00:05][%mdl 4096] Endgame KQR-KQR} Qg4+ {[%emt 0:00:34]} 33. Rg3 {[%emt 0:00:22]} Qd1 {[%emt 0:00:35] ( -> ...Qh1+)} 34. Rh3 {[%emt 0:01:30] Inhibits Qh1+.} Qc2+ {[%emt 0:00:11]} 35. Kg3 $2 {[%emt 0:01:00]} (35. Kg1 Qb1+ 36. Kh2 Qxb2+ 37. Kh1) 35... Rg6+ {[%emt 0:00:23]} 36. Kf4 {[%emt 0:00:30]} Rf6+ {[%emt 0:00:35]} 37. Kg3 {[%emt 0:00:22]} Rg6+ $2 {[%emt 0:00:22]} (37... Qxb2 38. Rh4 Qxa2) 38. Kf4 {[%emt 0:00:12]} Qxb2 {[%emt 0:00:35][%cal Rb2f6]} 39. Qxa7 {[%emt 0:01:35] [#]} (39. Rh8+ $19 Kc7 40. Qe1) 39... Qf6+ {[%emt 0:01:44] Black mates.} 40. Ke3 {[%emt 0:00:21]} Qg5+ {[%emt 0:00:23]} 41. Kd4 {[%emt 0:00:20]} Qg1+ {[%emt 0:00:41]} 42. Re3 {[%emt 0:00:09]} Qa1+ {[%emt 0:00:26]} 43. Kc5 {[%emt 0:00:29]} Qe5+ {[%emt 0:00:23]} 44. Kb6 {[%emt 0:00:37]} Qd4+ {[%emt 0:00:39]} 45. c5 {[%emt 0:00:05]} Qb4# {[%emt 0:00:07] Weighted Error Value: White=0.49/Black=0.41} 0-1

[Event "34th Pula Open 2022"]
[Site "Pula"]
[Date "2022.06.19"]
[Round "2.5"]
[White "Ragger, Anna-Christina"]
[Black "Marjanovic, Annamaria"]
[Result "1-0"]
[ECO "C07"]
[WhiteElo "2141"]
[BlackElo "2353"]
[Annotator "TA"]
[PlyCount "117"]
[EventDate "2022.06.18"]
[EventType "swiss"]
[EventCountry "CRO"]
[SourceTitle "playchess.com"]
[Source "ChessBase"]
[SourceQuality "1"]
[TimeControl "5400+30"]

{[%evp 21,117,38,42,0,14,9,5,3,17,9,6,4,20,36,35,42,37,35,28,34,41,30,24,31,34,35,59,0,1,-6,-11,-8,0,0,14,1,5,0,61,0,31,27,82,79,109,113,114,102,100,106,381,379,440,282,490,497,539,548,545,546,536,529,520,515,587,570,575,459,472,463,538,534,552,566,577,564,638,636,603,575,892,683,731,712,931,918,1074,1073,1379,1327,2389,2292,2313,2921,2714,2314,2351,2065]} 1. e4 {[%emt 0:00:03]} e6 {[%emt 0:00:06]} 2. d4 {[%emt 0:00:05]} d5 {[%emt 0:00:06]} 3. Nd2 {[%emt 0:00:07]} c5 {[%emt 0:00:22]} 4. exd5 {[%emt 0:00:08]} Qxd5 {[%emt 0:00:24]} 5. Ngf3 {[%emt 0:00:08]} cxd4 {[%emt 0:00:12]} 6. Bc4 {[%emt 0:00:09]} Qd6 {[%emt 0:00:08]} 7. O-O {[%emt 0:00:15]} Nf6 {[%emt 0:00:10]} 8. Nb3 {[%emt 0:00:13]} Nc6 {[%emt 0:00:13]} 9. Nbxd4 {[%emt 0:00:17]} Nxd4 {[%emt 0:00:12]} 10. Nxd4 {[%emt 0:00:11]} a6 {[%emt 0:00:13]} 11. Bb3 {[%emt 0:00:29]} Qc7 {[%emt 0:00:17]} 12. Qf3 {[%emt 0:02:24] Black should prevent Re1. C07: French Tarrasch: 3...c5, 4 Ngf3 and 4 exd5 Qxd5.} Bd6 {[%emt 0:00:30]} 13. Kh1 {[%emt 0:02:12]} O-O {[%emt 0:02:28]} 14. Bg5 {[%emt 0:04:58] The position is equal.} Nd7 {[%emt 0:00:56]} 15. c3 {[%emt 0:03:38]} Ne5 {[%emt 0:00:44]} 16. Qh5 Ng6 {[%emt 0:00:30] Inhibits f4.} 17. Bc2 Bf4 {[%emt 0:00:30]} 18. Bxf4 Qxf4 {[%emt 0:00:30]} 19. Nf3 {[#]} Qf6 $146 {[%emt 0:00:30]} ({Predecessor:} 19... f6 20. Bxg6 hxg6 21. Qxg6 e5 22. Rfe1 Bf5 23. Qg3 Qxg3 24. hxg3 Rfd8 25. Rad1 Be6 {½-½ (41) Suarez Real,A (2367)-Scotti,U (2182) Nice 2005}) 20. Rad1 {Prevents Bd7.} b5 {[%emt 0:00:30]} 21. Be4 {Prevents Bb7.} Ra7 {[%emt 0:00:30]} 22. Qc5 Qe7 {[%emt 0:00:30]} 23. Qxe7 (23. Qb6 {seems wilder.} Rc7 24. Rfe1 Rd8 25. a3) 23... Rxe7 {[%emt 0:00:30]} 24. Nd4 (24. Rd6 $14) 24... Rc7 $11 {[%emt 0:00:30]} 25. g3 Ne5 {[%emt 0:00:30]} 26. Ne2 {[%cal Bd4e2,Be2f4,Bf4e6][%mdl 32]} Bd7 {[%emt 0:00:30]} 27. Rd4 f5 {[%emt 0:00:30]} 28. Bg2 Kf7 {[%emt 0:00:30]} ({Don't play} 28... Bc6 29. Nf4 Kf7 30. Bxc6 Rxc6 31. Re1 $11) 29. Rfd1 {[#] Hoping for f4.} Ke7 {[%emt 0:00:30]} (29... Bc8 $1 $11) 30. h4 (30. Re1 $14) 30... Rb8 {[%emt 0:00:30][%cal Ob5b4]} 31. Nf4 Nc4 {[%emt 0:00:30]} (31... b4 $11 {remains equal.}) 32. Re1 $36 {[%mdl 2048] Threatens to win with Nd5+. White is on the roll.} Kf7 {[%emt 0:00:30]} 33. b3 Nb6 {[%emt 0:00:30]} 34. Rd6 {[%cal Rf4e6] White is much more active.} Rxc3 {[%emt 0:00:30]} 35. Nxe6 {Ng5+ is the strong threat.} h6 {[%emt 0:00:30][%mdl 8192] Against Ng5+. Black cannot hold the game after this.} (35... Ke7 $16 36. Rd2 Bxe6) 36. Nf4 $18 Be8 {[%emt 0:00:30]} 37. h5 {Black must now prevent Ng6.} Rc7 $2 {[%emt 0:00:30]} (37... Kf8 {is a better defense.} 38. Re5 Bf7 39. Ng6+ Bxg6) 38. Ng6 {White is clearly winning.} a5 {[%emt 0:00:30] [#]} 39. Rxb6 $1 {[%mdl 512]} Rxb6 {[%emt 0:00:30]} 40. Bd5+ {[%mdl 64] Deflection} Kf6 {[%emt 0:00:30]} 41. Rxe8 Kg5 {[%emt 0:00:30]} 42. Nf4 Rd7 {[%emt 0:00:30]} 43. Kg2 Rbd6 {[%emt 0:00:30]} 44. Bf3 {White threatens Rf8 and mate.} Kf6 {[%emt 0:00:30]} 45. Rf8+ Ke5 {[%emt 0:00:30]} 46. Rb8 b4 {[%emt 0:00:30]} 47. Rb5+ Kd4 {[%emt 0:00:30]} 48. Rxa5 Kc3 {[%emt 0:00:30]} 49. Nd5+ Kb2 {[%emt 0:00:30]} 50. Nxb4 Rd4 {[%emt 0:00:30]} 51. Nd5 Rd8 {[%emt 0:00:30]} 52. b4 {[%cal Bb3b4,Bb4b5][%mdl 32]} Rc8 {[%emt 0:00:30]} 53. Rc5 Rb8 {[%emt 0:00:30]} 54. a4 {[%cal Ba2a4,Ba4a5,Ba5a6][%mdl 32]} Rd2 {[%emt 0:00:30]} 55. a5 Kb3 {[%emt 0:00:30]} 56. a6 Ra8 {[%emt 0:00:30]} 57. b5 {Threatening mate with b6.} Ka3 {[%emt 0:00:30]} 58. Nb6 Ra7 {[%emt 0:00:30]} 59. Nc8 {Weighted Error Value: White=0.16 (very precise) /Black=0.32} 1-0

[Event "34th Pula Open 2022"]
[Site "Pula"]
[Date "2022.06.19"]
[Round "2.6"]
[White "Maki-Uuro, Miikka"]
[Black "Olenik Campa, Rudi"]
[Result "1/2-1/2"]
[ECO "A13"]
[WhiteElo "2332"]
[BlackElo "2109"]
[Annotator "TA"]
[PlyCount "45"]
[EventDate "2022.06.18"]
[EventType "swiss"]
[EventCountry "CRO"]
[SourceTitle "playchess.com"]
[Source "ChessBase"]
[SourceQuality "1"]
[TimeControl "5400+30"]

{[%evp 9,45,10,16,12,60,48,96,104,102,99,268,95,197,-37,-38,-47,-41,-33,-32,-80,-12,-11,26,14,28,-5,0,0,4,0,0,-7,0,0,0,0,0,0]} 1. Nf3 {[%emt 0:00:05]} d5 {[%emt 0:00:03][%cal Bd7d5,Bd5c4][%mdl 32]} 2. c4 {[%emt 0:01:12]} e6 {[%emt 0:03:05]} 3. g3 {[%emt 0:00:40]} dxc4 {[%emt 0:03:34]} 4. Bg2 {[%emt 0:01:29]} c6 {[%emt 0:03:35]} 5. a4 Qc7 {[%emt 0:00:30]} 6. O-O {[#] A13: English Opening: 1...e6.} e5 $146 {[%emt 0:00:30]} (6... Nf6 $11 {feels stronger.}) ({Predecessor:} 6... Nf6 7. Qc2 Nbd7 8. Qxc4 Nb6 9. Qc2 Be7 10. d4 Nbd5 11. e4 Nb4 12. Qe2 b6 {½-½ (35) Dolgusheva,I (2056)-Kotliarova,M Tomsk 2008}) 7. Na3 $14 Nf6 {[%emt 0:00:30]} (7... Bxa3 $14 {might be stronger.} 8. Rxa3 Be6) 8. Nxc4 $16 {White is better.} e4 {[%emt 0:00:30] [#]} 9. Ng5 Bf5 $2 {[%emt 0:00:30]} (9... Be7 $16) 10. Qc2 $2 (10. d3 $18 {and the rest is easy.}) 10... Qe7 {[%emt 0:00:30]} (10... Be7 $16) 11. f3 $2 (11. d3 $18) 11... Qc5+ $15 {[%emt 0:00:30]} 12. Ne3 $1 {Hoping for Qb3.} Qxc2 {[%emt 0:00:30]} 13. Nxc2 {[%cal Rf3e4]} exf3 {[%emt 0:00:30]} 14. Ne1 (14. e4 $15) 14... Nbd7 {[%emt 0:00:30]} ({Of course not} 14... Bc5+ $6 15. e3 $15) ({Black should try} 14... fxg2 $17 15. Rxf5 Nbd7) 15. Ngxf3 $11 Nc5 {[%emt 0:00:30] [#] Threatens to win with ...Nb3.} 16. Nd4 {Prevents Nb3.} Bg6 {[%emt 0:00:30]} 17. d3 (17. b4 $5 {[%cal Rb4c5]} Rd8 18. Nef3 $14) 17... O-O-O {[%emt 0:00:30] The position is equal.} 18. Nec2 Na6 {[%emt 0:00:30] Prevents b4.} 19. Bf4 {Black must now prevent Bh3+.} h5 {[%emt 0:00:30]} 20. Nb3 Nc5 {[%emt 0:00:30]} 21. Nbd4 Na6 {[%emt 0:00:30] Inhibits b4.} 22. Nb3 Nc5 {[%emt 0:00:30]} 23. Nbd4 {Weighted Error Value: White=0.39/Black=0.28 (precise)} 1/2-1/2

[Event "34th Pula Open 2022"]
[Site "Pula"]
[Date "2022.06.19"]
[Round "2.7"]
[White "Terryn, Ezra"]
[Black "Jahncke, Giso"]
[Result "1-0"]
[ECO "B10"]
[WhiteElo "2132"]
[BlackElo "2321"]
[Annotator "TA"]
[PlyCount "105"]
[EventDate "2022.06.18"]
[EventType "swiss"]
[EventCountry "CRO"]
[SourceTitle "playchess.com"]
[Source "ChessBase"]
[SourceQuality "1"]
[TimeControl "5400+30"]

{[%evp 9,105,0,14,0,7,0,0,0,17,20,59,34,50,40,45,44,72,61,72,54,89,86,79,22,114,54,59,57,60,40,48,49,39,49,55,27,27,21,29,29,45,50,62,47,53,12,72,47,41,39,47,49,61,0,0,0,25,27,40,0,0,0,0,-35,0,0,0,0,0,0,45,-17,4,9,7,0,8,0,173,155,240,235,498,0,8,8,320,0,550,148,133,145,143,125,1405,1466,1254,802]} 1. e4 {[%emt 0:03:45]} c6 {[%emt 0:00:18]} 2. Nf3 {[%emt 0:03:11]} d5 {[%emt 0:00:21]} 3. d3 {[%emt 0:00:06]} g6 {[%emt 0:00:08]} 4. e5 {[%emt 0:00:13]} c5 {[%emt 0:05:23]} 5. c3 {[%emt 0:03:55]} Nc6 {[%emt 0:00:35]} 6. d4 {[%emt 0:02:02] B10: Caro-Kann: 2 d3 and 2 c4.} Bg4 {[%emt 0:02:40]} 7. Nbd2 {[%emt 0:05:29]} cxd4 {[%emt 0:00:30]} 8. cxd4 {[%emt 0:00:30] The position is equal.} Qa5 {[%emt 0:00:30]} 9. Qb3 {[%emt 0:00:30] [#]} O-O-O $146 {[%emt 0:00:30]} ({Predecessor:} 9... Qb4 10. Bb5 Qxb3 11. Bxc6+ bxc6 12. axb3 Bd7 13. Nf1 e6 14. Be3 h5 15. Ke2 Ne7 16. N1d2 Nf5 {1-0 (50) Lagarde,M (2658)-Guseinov,G (2665) Chess.com INT 2020}) 10. Qc3 {[%emt 0:00:30]} Qxc3 {[%emt 0:00:30]} 11. bxc3 {[%emt 0:00:30]} f6 {[%emt 0:00:30]} 12. Bb5 {[%emt 0:00:30]} Bg7 {[%emt 0:00:30]} 13. O-O {[%emt 0:00:30]} Nh6 {[%emt 0:00:30][%cal Rf6e5]} 14. Ba3 {[%emt 0:00:30] aiming for Bxc6.} Rd7 {[%emt 0:00:30]} 15. Rfe1 {[%emt 0:00:30]} Rc7 {[%emt 0:00:30]} 16. Rac1 {[%emt 0:00:30]} (16. Bxc6 $16 bxc6 17. h3) 16... Rd8 {[%emt 0:00:30]} (16... fxe5 $11 {keeps the balance.} 17. Bxc6 (17. dxe5 Nf7 $14) (17. Nxe5 Nxe5 18. dxe5 a6 $11) 17... Bxf3) 17. h3 {[%emt 0:00:30]} ({Better is} 17. Bxc6 $16 bxc6 18. exf6 exf6 19. Bb4) 17... Bxf3 $14 {[%emt 0:00:30]} 18. Nxf3 {[%emt 0:00:30]} Nf7 {[%emt 0:00:30][%cal Rf6e5]} 19. exf6 {[%emt 0:00:30]} (19. Bxc6 $5 bxc6 20. exf6 Bxf6 21. Bb4 $14) 19... Bxf6 {[%emt 0:00:30]} 20. Bxc6 {[%emt 0:00:30]} bxc6 {[%emt 0:00:30]} 21. Bb4 {[%emt 0:00:30]} Rb7 {[%emt 0:00:30]} 22. Re6 {[%emt 0:00:30]} Kd7 {[%emt 0:00:30]} 23. Rce1 {[%emt 0:00:30][%cal Rb4e7]} Re8 {[%emt 0:00:30]} 24. Nd2 {[%emt 0:00:30] And now Nb3 would win.} Nd8 {[%emt 0:00:30]} 25. R6e2 {[%emt 0:00:30]} Rb8 {[%emt 0:00:30]} 26. Nb3 {[%emt 0:00:30]} Nb7 $1 {[%emt 0:00:30]} 27. Re6 {[%emt 0:00:30]} Ra8 {[%emt 0:00:30]} (27... a5 $1 $11 {remains equal.} 28. Bxa5 (28. Nxa5 Nxa5 29. Bxa5 Ra8 $11) 28... Ra8) 28. g3 {[%emt 0:00:30] 0x0.000bd71208eddp-1022s more active pieces.} a5 $1 {[%emt 0:00:30]} 29. Nc5+ {[%emt 0:00:30]} Nxc5 {[%emt 0:00:30]} 30. Bxc5 {[%emt 0:00:30]} Rab8 {[%emt 0:00:30][%cal Ba8b8,Bb8b1,Bb1c1][%mdl 32]} 31. R1e2 {[%emt 0:00:30] Inhibits Rb2.} (31. Ba3 $1 $14) 31... Rb1+ $11 {[%emt 0:00:30]} 32. Kg2 {[%emt 0:00:30]} Rc1 {[%emt 0:00:30]} 33. R6e3 {[%emt 0:00:30]} Rb1 {[%emt 0:00:30] Prevents Rb2.} 34. f4 {[%emt 0:00:30]} e6 {[%emt 0:00:30]} 35. g4 {[%emt 0:00:30]} Bd8 {[%emt 0:00:30]} 36. Kf2 {[%emt 0:00:30]} Bh4+ {[%emt 0:00:30]} 37. Kg2 {[%emt 0:00:30]} Bd8 {[%emt 0:00:30]} 38. Re1 {[%emt 0:00:30]} Rb8 {[%emt 0:00:30]} 39. Kg3 {[%emt 0:00:30]} Bc7 {[%emt 0:00:30]} 40. h4 {[%emt 0:00:30]} (40. Kf3 $1 $14) 40... h5 {[%emt 0:00:30]} (40... Rb2 $5 {[%cal Rb2a2]}) 41. gxh5 {[%emt 0:00:30]} gxh5 {[%emt 0:00:30]} 42. Kf3 $1 {[%emt 0:00:30]} Rb2 {[%emt 0:00:30]} 43. Rg1 {[%emt 0:00:30]} Rxa2 $2 {[%emt 0:00:30]} (43... Rh2 $11) 44. Rg7+ {[%emt 0:00:30]} Kc8 {[%emt 0:00:30] [#]} (44... Kd8 $16 {was worth a try.}) 45. f5 $1 $18 {[%emt 0:00:30] Hoping for f6.} e5 $2 {[%emt 0:00:30]} (45... Bd8 46. Rxe6 Rxe6 47. fxe6 Bxh4) 46. Rxc7+ $2 {[%emt 0:00:30]} Kxc7 $11 {[%emt 0:00:30]} 47. dxe5 $18 {[%emt 0:00:30][%mdl 4096] Endgame Black must now prevent f6. KRR-KRB} Rg8 $2 {[%emt 0:00:30][%mdl 8192]} (47... Ra1 $11 {and Black is okay.} 48. Kf2 Ra2+ 49. Kf3 Ra1) 48. f6 $2 {[%emt 0:00:30]} (48. e6 $18 {Threatens to win with f6.} Ra1 49. Kf2) 48... Rag2 $2 {[%emt 0:00:30][%mdl 8192]} (48... Rg1 $1 $11) 49. f7 $2 {[%emt 0:00:30]} (49. e6 $18) 49... R8g3+ $16 {[%emt 0:00:30]} (49... R2g3+ $2 50. Kf4 R3g6 51. e6 $18) 50. Kf4 {[%emt 0:00:30]} Rg4+ {[%emt 0:00:30] [#]} 51. Kf5 $1 {[%emt 0:00:30]} Rg7 $2 {[%emt 0:00:30][%mdl 8192]} (51... Rf2+ $16 52. Ke6 Rgf4) 52. f8=Q $18 {[%emt 0:00:30] Re1 would kill now.} Rf2+ {[%emt 0:00:30]} 53. Ke6 {[%emt 0:00:30] Weighted Error Value: White=0.50/Black=0.47} 1-0

[Event "34th Pula Open 2022"]
[Site "Pula"]
[Date "2022.06.19"]
[Round "2.8"]
[White "Pastar, Slaven"]
[Black "Grbac, Boris"]
[Result "1-0"]
[ECO "A14"]
[WhiteElo "2300"]
[BlackElo "2120"]
[Annotator "TA"]
[PlyCount "133"]
[EventDate "2022.06.18"]
[EventType "swiss"]
[EventCountry "CRO"]
[SourceTitle "playchess.com"]
[Source "ChessBase"]
[SourceQuality "1"]
[TimeControl "5400+30"]

{[%evp 18,133,29,15,26,38,35,29,30,25,21,34,44,26,52,43,27,29,28,29,58,55,61,74,72,26,51,0,64,69,74,64,77,65,139,66,66,58,59,63,66,58,66,26,102,100,108,107,133,127,125,107,101,83,120,131,147,142,143,110,205,197,197,197,197,197,197,197,187,187,187,174,158,152,152,178,227,243,243,243,230,220,203,203,720,711,695,192,192,190,3210,1464,29955,29956,29959,29959,29959,29959,29959,8,8,0,29960,29959,29966,29967,29967,29967,29969,29970,29976,29977,29977,29978,29977,29977,29977,29975]} 1. Nf3 {[%emt 0:00:08]} d5 {[%emt 0:00:17]} 2. g3 {[%emt 0:00:29]} Nf6 {[%emt 0:01:02]} 3. Bg2 {[%emt 0:00:47]} c6 {[%emt 0:00:38]} 4. b3 {[%emt 0:00:13]} e6 {[%emt 0:02:17]} 5. Bb2 {[%emt 0:00:10]} Nbd7 {[%emt 0:01:44]} 6. O-O {[%emt 0:01:19]} Be7 {[%emt 0:02:08]} 7. c4 {[%emt 0:02:09]} O-O {[%emt 0:03:29]} 8. Qc2 {[%emt 0:02:11]} b6 {[%emt 0:04:55]} 9. d3 {[%emt 0:01:52][%cal Bd2d3,Bd3e4,Be4e5][%mdl 32]} Bb7 {[%emt 0:01:27]} 10. e4 {[%emt 0:00:39]} dxe4 {[%emt 0:06:05] A14: English Opening: 1...e6 with b3 by White.} 11. dxe4 {[%emt 0:00:25]} Qc7 {[%emt 0:00:27]} 12. e5 {[%emt 0:01:29]} Ng4 {[%emt 0:08:48][%cal Rg4e5,Bf6g4,Bg4h6,Bh6f5][%mdl 32] White has an edge.} 13. Qe4 {[%emt 0:01:28]} Nh6 {[%emt 0:02:32]} 14. Nc3 {[%emt 0:05:50] [#]} Rfd8 $146 {[%emt 0:03:26]} ({Predecessor:} 14... Nc5 15. Qe2 Rad8 16. Rad1 Rxd1 17. Rxd1 Rd8 18. Bc1 Rxd1+ 19. Qxd1 Ng4 20. Qd4 h5 {1-0 (37) Markowski,T (2558)-Theuermeister,P (1920) Dresden 2004}) 15. Rad1 {[%emt 0:01:36]} Nf5 {[%emt 0:11:41]} 16. Qe2 {[%emt 0:08:35]} Nf8 {[%emt 0:04:42]} 17. Ne4 {[%emt 0:02:19]} c5 {[%emt 0:01:07]} 18. g4 {[%emt 0:01:55]} Bxe4 {[%emt 0:03:28]} 19. Qxe4 {[%emt 0:00:41]} Nh4 {[%emt 0:00:51]} 20. Nxh4 {[%emt 0:02:59]} Bxh4 {[%emt 0:00:07]} 21. Rde1 {[%emt 0:09:30]} ({White should try} 21. Rc1 $16) 21... Rab8 {[%emt 0:02:05]} 22. Re2 {[%emt 0:01:05]} (22. Qe3 $14) 22... Qd7 {[%emt 0:02:28]} (22... g5 $1 $11) 23. f4 $14 {[%emt 0:03:26]} Be7 {[%emt 0:06:28]} 24. Bc1 {[%emt 0:07:05]} Qd4+ {[%emt 0:01:50]} 25. Be3 {[%emt 0:01:20]} Qc3 {[%emt 0:07:00]} ({Better is} 25... Qxe4 $14 26. Bxe4 Ng6) 26. Rc1 {[%emt 0:01:32]} (26. f5 $16) 26... Qd3 {[%emt 0:00:05]} 27. Qxd3 {[%emt 0:02:32]} Rxd3 {[%emt 0:00:09]} 28. Be4 {[%emt 0:00:16]} Rd7 {[%emt 0:00:08]} 29. Kg2 {[%emt 0:01:12]} Rbd8 {[%emt 0:00:36]} 30. h4 {[%emt 0:02:58][%cal Bh2h4,Bh4h5][%mdl 32] White is more active.} Rd1 {[%emt 0:03:59]} (30... Bxh4 $11 {remains equal.} 31. g5 f5) 31. h5 $36 {[%emt 0:02:56][%mdl 2048] White is on the roll.} h6 {[%emt 0:07:15]} 32. Bc2 {[%emt 0:01:21]} R1d7 {[%emt 0:01:26]} 33. Kf3 {[%emt 0:03:11]} f6 {[%emt 0:01:41]} 34. exf6 {[%emt 0:01:39]} Bxf6 {[%emt 0:00:30]} 35. Rg1 {[%emt 0:01:29]} Kf7 {[%emt 0:03:10]} 36. g5 {[%emt 0:02:19]} hxg5 {[%emt 0:00:35]} 37. fxg5 {[%emt 0:00:07]} Bd4 {[%emt 0:00:08]} 38. h6 {[%emt 0:03:22]} g6 {[%emt 0:00:54]} (38... Kg8 $16) 39. Rf1 {[%emt 0:02:40]} Kg8 {[%emt 0:00:15]} 40. Ref2 {[%emt 0:02:31]} Rf7+ {[%emt 0:00:34]} 41. Ke2 {[%emt 0:00:27]} Rxf2+ {[%emt 0:00:10]} 42. Rxf2 {[%emt 0:00:24]} ({But not} 42. Bxf2 Bxf2 43. Rxf2 Rd4 $16) 42... Bxe3 {[%emt 0:00:40]} 43. Kxe3 $18 {[%emt 0:00:07][%mdl 4096] Endgame KRB-KRN} Rd4 {[%emt 0:01:00]} 44. Rf6 {[%emt 0:04:34]} Rg4 {[%emt 0:00:20]} 45. Bxg6 {[%emt 0:03:01] Bf7+ is the strong threat.} Rxg5 {[%emt 0:00:19]} 46. Bf7+ {[%emt 0:01:20]} Kh7 {[%emt 0:01:30]} (46... Kh8 {was worth a try.} 47. Bxe6 Nh7) 47. Bxe6 {[%emt 0:03:00]} Re5+ {[%emt 0:01:02]} 48. Kf4 {[%emt 0:00:09]} Rxe6 {[%emt 0:00:08]} 49. Rxf8 {[%emt 0:00:36] And now Rf7+ would win.} Kxh6 {[%emt 0:00:31] KR-KR} 50. Rf7 {[%emt 0:00:40] Black must now prevent Kf5.} a5 $2 {[%emt 0:02:39]} (50... Kg6 51. Rxa7 Kf6) 51. Kf5 {[%emt 0:00:18]} Re2 {[%emt 0:00:48]} 52. Rf6+ $2 {[%emt 0:01:10]} (52. Rb7 Rxa2 53. Rxb6+ Kg7 54. Rb7+ Kf8 55. Ke6) 52... Kg7 {[%emt 0:00:07] Threatens to win with ...Rf2+.} 53. Rxb6 {[%emt 0:00:08] Hoping for a4.} Rxa2 {[%emt 0:00:09]} (53... a4) 54. Ke6 {[%emt 0:01:23]} a4 {[%emt 0:01:06]} 55. bxa4 {[%emt 0:00:22]} Rxa4 {[%emt 0:00:27]} 56. Kd5 {[%emt 0:00:19]} Kf7 {[%emt 0:00:05]} 57. Kxc5 {[%emt 0:00:29]} Ke7 {[%emt 0:05:41]} 58. Rb4 $2 {[%emt 0:05:35]} (58. Kb5 $1 {mates} Ra1 59. c5 Kd8 60. Rh6 Kc8 61. Kb6 Rc1 62. Rc6+ Kb8 63. Rg6) 58... Ra6 $11 {[%emt 0:00:00]} 59. Rb6 $2 {[%emt 0:00:05][%mdl 8192]} (59. Kb5 $11 Rg6 60. Ka5) 59... Ra4 $1 {[%emt 0:00:23] [#]} 60. Kb5 $1 {[%emt 0:00:09] White mates.} Ra1 {[%emt 0:00:04] [#]} 61. Kc6 $1 {[%emt 0:00:28]} ({Less strong is} 61. c5 Kd8 $16) 61... Kd8 {[%emt 0:00:00]} 62. Rb8+ {[%emt 0:00:16]} Ke7 {[%emt 0:00:23]} 63. c5 {[%emt 0:00:18][%cal Bc4c5,Bc5c6][%mdl 32]} Ra6+ {[%emt 0:00:00]} 64. Kc7 {[%emt 0:00:14]} Ra2 {[%emt 0:00:00]} 65. c6 {[%emt 0:00:15]} Ke6 {[%emt 0:00:00]} 66. Re8+ {[%emt 0:00:37]} Kd5 {[%emt 0:00:00]} 67. Kd7 {[%emt 0:00:19] Weighted Error Value: White=0.37/Black=0.28 (precise)} 1-0